bitfinex/quotes_SOLUSD_20241110
["timestamp","ask_amount","ask_price","bid_price","bid_amount"]
[1731259371976,11.85827091,210.91,210.87,11.8556]
[1731259375477,11.85827091,210.95,210.88,11.85827091]
[1731259375773,11.85827091,210.95,210.87,11.8556]
[1731259375774,11.85827091,210.96,210.9,11.85827091]
[1731259375971,11.85827091,210.94,210.88,11.85827091]
[1731259376195,11.85827091,210.93,210.87,23.71387091]
[1731259376393,11.85827091,210.93,210.87,11.8556]
[1731259376794,11.85827091,210.91,210.87,16.5978]
[1731259378392,11.85827091,210.91,210.87,11.8556]
[1731259378598,11.85827091,210.88,210.84,4.7429]
[1731259378802,11.85827091,210.91,210.84,16.60117091]
[1731259379089,11.85827091,210.9,210.84,4.7429]
[1731259379680,11.85827091,210.89,210.84,4.7429]
[1731259379897,11.85827091,210.89,210.84,16.6002]
[1731259380078,11.85827091,210.88,210.84,16.6002]
[1731259380283,11.85827091,210.89,210.82,27.21327091]
[1731259380493,11.85827091,210.9,210.83,11.85827091]
[1731259381390,11.85827091,210.91,210.85,4.7427]
[1731259381591,170.95827091,210.94,210.87,11.85827091]
[1731259381794,11.85827091,210.95,210.88,11.85827091]
[1731259381981,170.95827091,210.97,210.9,11.85827091]
[1731259382176,11.85827091,210.96,210.89,11.85827091]
[1731259382387,11.85827091,210.95,210.88,11.85827091]
[1731259383091,15.9077,211.0,210.88,11.85827091]
[1731259383092,11.85827091,210.98,210.9,11.85827091]
[1731259383400,11.85827091,210.98,210.88,23.776884]
[1731259383401,11.85827091,210.96,210.89,11.85827091]
[1731259383898,11.85827091,210.96,210.9,16.5954]
[1731259384099,11.85827091,210.95,210.9,16.5954]
[1731259384301,11.85827091,210.94,210.9,16.5954]
[1731259385045,15.9077,211.0,210.9,16.5954]
[1731259385046,11.85827091,210.93,210.9,11.8539]
[1731259385601,11.85827091,210.92,210.9,11.8539]
[1731259385799,11.85827091,210.92,210.85,35.57177091]
[1731259386000,11.85827091,210.93,210.86,28.45687091]
[1731259386178,11.85827091,210.94,210.87,11.85827091]
[1731259386905,11.85827091,210.93,210.86,28.45687091]
[1731259387397,11.85827091,210.93,210.86,16.5986]
[1731259388389,11.85827091,210.93,210.86,28.45687091]
[1731259389190,11.85827091,210.95,210.87,11.85827091]
[1731259389391,11.85827091,210.96,210.88,11.85827091]
[1731259390094,11.85827091,210.96,210.89,11.85827091]
[1731259390296,11.85827091,210.97,210.89,11.85827091]
[1731259391213,11.85827091,210.97,210.9,4.7415]
[1731259391792,16.59827091,210.97,210.9,4.7415]
[1731259392198,11.85827091,210.99,210.92,11.85827091]
[1731259392707,11.85827091,210.98,210.91,11.85827091]
[1731259393409,11.85827091,211.01,210.94,11.85827091]
[1731259393614,159.1,211.04,210.92,40.370784]
[1731259393615,11.85827091,211.04,210.97,11.85827091]
[1731259394294,11.85827091,211.01,210.94,11.85827091]
[1731259394696,11.85827091,210.99,210.92,58.44445491]
[1731259395094,11.85827091,211.0,210.93,11.85827091]
[1731259395503,11.85827091,211.0,210.94,16.5923]
[1731259395910,11.85827091,211.02,210.95,11.85827091]
[1731259396402,11.85827091,211.02,210.94,16.5923]
[1731259396596,11.85827091,211.0,210.94,16.5923]
[1731259397303,4.7387,211.03,210.94,16.5923]
[1731259397304,11.85827091,211.01,210.94,28.45057091]
[1731259397607,11.85827091,211.02,210.96,4.7402]
[1731259398104,4.7387,211.03,210.96,4.7402]
[1731259398105,11.85827091,211.03,210.96,28.44897091]
[1731259398298,11.85827091,211.02,210.96,28.44897091]
[1731259398706,11.85827091,211.02,210.96,16.5907]
[1731259401716,11.85827091,211.01,210.96,11.8505]
[1731259402117,11.85827091,211.0,210.96,11.8505]
[1731259402692,11.85827091,211.0,210.92,29.992284]
[1731259402693,11.85827091,210.99,210.92,6.2154]
[1731259402890,16.59667091,211.04,210.97,11.85827091]
[1731259403718,11.85827091,211.03,210.96,11.85827091]
[1731259404921,11.85827091,211.03,210.97,4.74]
[1731259406109,11.85827091,211.03,210.97,11.85827091]
[1731259406415,11.85827091,211.05,210.98,11.85827091]
[1731259406816,11.85827091,211.02,210.96,23.70867091]
[1731259408820,11.85827091,211.02,210.96,28.44887091]
[1731259409619,11.85827091,211.03,210.96,28.44887091]
[1731259410204,175.69597091,211.07,211.01,11.85827091]
[1731259410405,11.85827091,211.05,210.98,11.85827091]
[1731259410606,11.85827091,211.02,210.96,28.44887091]
[1731259411016,163.8377,211.07,210.96,16.5906]
[1731259411205,11.85827091,211.05,210.99,11.85827091]
[1731259411724,11.85827091,211.05,210.99,16.59777091]
[1731259412506,11.85827091,211.04,210.99,4.7395]
[1731259412914,11.85827091,211.03,210.99,4.7395]
[1731259414001,11.85827091,211.03,210.97,16.59]
[1731259415621,4.7382,211.05,210.98,11.85827091]
[1731259415820,16.59647091,211.05,210.98,11.85827091]
[1731259416024,11.85827091,211.04,210.97,11.85827091]
[1731259416722,11.85827091,211.03,210.96,11.85827091]
[1731259416925,11.85827091,211.01,210.95,16.5915]
[1731259417120,11.85827091,210.98,210.95,16.5915]
[1731259417315,11.85827091,210.96,210.93,4.7407]
[1731259418823,11.85827091,210.96,210.92,6.2154]
[1731259420030,0.12549,211.04,210.91,15.9133]
[1731259420228,11.85827091,210.96,210.92,4.741]
[1731259422557,11.85827091,210.99,210.92,16.5938]
[1731259424415,11.85827091,210.98,210.92,16.5938]
[1731259424618,11.85827091,210.97,210.92,16.5938]
[1731259424929,4.7391,211.01,210.92,16.5938]
[1731259424930,11.85827091,210.94,210.92,11.8528]
[1731259425526,11.85827091,210.93,210.88,11.8549]
[1731259425707,11.85827091,210.9,210.88,11.8549]
[1731259425913,11.85827091,210.89,210.83,16.6004]
[1731259426116,11.85827091,210.85,210.81,16.4015]
[1731259426316,15.4715,210.92,210.78,40.3261]
[1731259426525,20.2115,210.97,210.78,40.3261]
[1731259426827,20.2115,210.97,210.79,4.93882702]
[1731259427020,20.2115,210.97,210.8,14.19]
[1731259427428,11.85827091,210.91,210.84,11.85827091]
[1731259428130,11.85827091,210.92,210.85,11.85827091]
[1731259429224,11.85827091,210.93,210.86,11.85827091]
[1731259429439,11.85827091,210.93,210.87,4.7422]
[1731259430420,11.85827091,210.94,210.87,4.7422]
[1731259430625,11.85827091,210.94,210.87,28.45607091]
[1731259433135,11.85827091,210.92,210.85,11.85827091]
[1731259433940,4.7402,210.96,210.83,16.6009]
[1731259433941,11.85827091,210.94,210.86,11.85827091]
[1731259434532,11.85827091,210.9,210.83,28.45897091]
[1731259434918,11.85827091,210.87,210.78,23.7214]
[1731259435124,11.85827091,210.85,210.79,4.744]
[1731259435318,11.85827091,210.88,210.81,11.85827091]
[1731259436228,11.85827091,210.89,210.82,16.60157091]
[1731259437040,11.85827091,210.88,210.82,4.7433]
[1731259437338,11.85827091,210.88,210.82,16.6017]
[1731259437560,11.85827091,210.87,210.82,11.8584]
[1731259437833,11.85827091,210.87,210.82,16.6017]
[1731259438137,11.85827091,210.84,210.77,6.4881]
[1731259438324,11.85827091,210.84,210.77,23.09077091]
[1731259438914,11.85827091,210.85,210.78,11.85827091]
[1731259439119,11.85827091,210.86,210.79,11.85827091]
[1731259439333,11.85827091,210.86,210.8,4.7438]
[1731259439735,11.85827091,210.86,210.8,16.6033]
[1731259440235,4.7421,210.88,210.8,16.6033]
[1731259440425,11.85827091,210.88,210.81,11.85827091]
[1731259440628,11.85827091,210.89,210.82,11.85827091]
[1731259440832,20.41154216,210.97,210.85,11.85827091]
[1731259441032,11.85827091,210.89,210.82,11.85827091]
[1731259441544,11.85827091,210.88,210.83,4.7431]
[1731259441717,11.85827091,210.87,210.81,4.7435]
[1731259442233,11.85827091,210.88,210.81,28.46077091]
[1731259442421,11.85827091,210.89,210.83,11.85827091]
[1731259442623,11.85827091,210.87,210.81,16.6025]
[1731259443338,11.85827091,210.88,210.81,28.46077091]
[1731259443718,11.85827091,210.89,210.82,11.85827091]
[1731259444120,11.85827091,210.89,210.83,11.85827091]
[1731259444522,11.85827091,210.9,210.83,11.85827091]
[1731259444723,11.85827091,210.91,210.84,11.85827091]
[1731259445545,11.85827091,210.89,210.82,11.85827091]
[1731259446139,16.59977091,210.91,210.84,11.85827091]
[1731259446443,11.85827091,210.9,210.83,28.45917091]
[1731259446823,23.72340586,210.97,210.85,11.85827091]
[1731259447037,23.72340586,210.97,210.83,16.6009]
[1731259447038,11.85827091,210.92,210.86,11.85827091]
[1731259447229,11.85827091,210.92,210.85,11.85827091]
[1731259448344,11.85827091,210.92,210.86,11.85827091]
[1731259448839,11.85827091,210.92,210.85,11.85827091]
[1731259449037,16.59917091,210.93,210.86,11.85827091]
[1731259449620,16.59917091,210.93,210.86,16.60047091]
[1731259449828,15.4715,210.97,210.88,11.85827091]
[1731259450026,11.85827091,210.96,210.89,11.85827091]
[1731259450227,32.06977091,210.97,210.9,11.85827091]
[1731259450529,11.85827091,210.98,210.91,11.85827091]
[1731259450840,11.85827091,210.99,210.93,11.85827091]
[1731259451419,11.85827091,210.97,210.9,11.85827091]
[1731259451630,11.85827091,210.97,210.91,4.7413]
[1731259452650,11.85827091,210.94,210.87,16.60027091]
[1731259452845,16.81229,211.01,210.87,16.60027091]
[1731259452846,11.85827091,210.93,210.87,4.742]
[1731259453030,11.85827091,210.94,210.87,16.60027091]
[1731259454029,11.85827091,210.95,210.88,11.85827091]
[1731259454530,11.85827091,210.94,210.87,28.45587091]
[1731259455545,11.85827091,210.95,210.87,28.45587091]
[1731259457048,11.85827091,210.94,210.87,28.45587091]
[1731259459138,11.85827091,210.88,210.82,11.8579]
[1731259459637,11.85827091,210.89,210.82,23.71617091]
[1731259460036,11.85827091,210.89,210.84,4.7428]
[1731259461254,159.1,210.92,210.88,11.85827091]
[1731259461546,11.85827091,210.95,210.88,11.85827091]
[1731259462445,170.95827091,210.96,210.88,11.85827091]
[1731259462847,170.95827091,210.96,210.89,11.85827091]
[1731259463045,11.85827091,210.96,210.89,11.85827091]
[1731259463354,16.59777091,211.0,210.93,11.85827091]
[1731259463538,11.85827091,211.0,210.93,11.85827091]
[1731259463858,175.6573,211.07,210.98,11.85827091]
[1731259464060,11.85827091,211.05,210.99,11.85827091]
[1731259464349,11.85827091,211.02,210.95,11.85827091]
[1731259464535,11.85827091,211.01,210.94,11.85827091]
[1731259465132,11.85827091,210.95,210.84,34.0415]
[1731259465332,11.85827091,210.91,210.85,4.7427]
[1731259465550,11.85827091,210.98,210.85,16.60097091]
[1731259465551,11.85827091,210.92,210.85,16.60097091]
[1731259465738,11.85827091,210.92,210.86,11.85827091]
[1731259466338,11.85827091,210.92,210.87,4.7422]
[1731259467853,4.7405,210.95,210.85,16.5994]
[1731259467854,11.85827091,210.91,210.85,16.5994]
[1731259469244,11.85827091,210.92,210.85,28.45767091]
[1731259470958,11.85827091,210.91,210.85,16.5994]
[1731259471846,11.85827091,210.93,210.86,11.85827091]
[1731259472154,175.6573,210.99,210.9,11.85827091]
[1731259472355,170.95827091,210.98,210.87,20.0]
[1731259472571,170.95827091,210.98,210.91,11.85827091]
[1731259472773,11.85827091,210.97,210.9,11.85827091]
[1731259474060,170.95827091,210.98,210.91,11.85827091]
[1731259475364,170.95827091,210.98,210.91,16.59947091]
[1731259475863,11.85827091,210.97,210.91,4.7412]
[1731259476166,11.85827091,210.96,210.9,11.8539]
[1731259477466,11.85827091,210.97,210.9,28.45367091]
[1731259478054,11.85827091,210.97,210.91,11.85827091]
[1731259478367,11.85827091,210.97,210.9,28.45367091]
[1731259479472,11.85827091,210.96,210.9,16.5954]
[1731259480848,11.85827091,210.95,210.9,11.8539]
[1731259481667,11.85827091,210.96,210.9,11.8539]
[1731259481879,11.85827091,210.96,210.9,16.5954]
[1731259482669,11.85827091,210.97,210.9,28.45367091]
[1731259482843,7.58814692,210.97,210.9,24.18354692]
[1731259483457,159.1,210.98,210.64,6.1052]
[1731259483458,0.1,210.83,210.64,6.1052]
[1731259483659,7.58814692,210.72,210.64,13.69334692]
[1731259483863,7.58814692,210.72,210.64,6.1052]
[1731259484766,11.88620253,210.71,210.64,6.1052]
[1731259485080,11.88620253,210.71,210.66,11.8671]
[1731259487063,4.745,210.75,210.66,11.8671]
[1731259487273,11.88620253,210.71,210.66,11.8671]
[1731259488963,11.88620253,210.67,210.63,4.7475]
[1731259489358,11.88620253,210.66,210.63,4.7475]
[1731259490168,11.88620253,210.66,210.61,11.87]
[1731259491765,11.88620253,210.68,210.61,11.87]
[1731259491962,11.88620253,210.67,210.61,11.87]
[1731259494274,11.88620253,210.67,210.59,11.88620253]
[1731259494489,20.0,210.72,210.63,11.88620253]
[1731259494780,20.0,210.72,210.58,4.7487]
[1731259494781,11.88620253,210.71,210.64,11.88620253]
[1731259495354,11.88620253,210.71,210.65,11.88620253]
[1731259495561,11.88620253,210.73,210.66,11.88620253]
[1731259495964,11.88620253,210.72,210.65,11.88620253]
[1731259496169,11.88620253,210.71,210.65,11.88620253]
[1731259496366,11.88620253,210.71,210.62,20.0]
[1731259496570,11.88620253,210.71,210.65,11.88620253]
[1731259497279,11.88620253,210.72,210.65,11.88620253]
[1731259497466,11.88620253,210.72,210.66,16.63310253]
[1731259497665,11.88620253,210.71,210.64,16.6154]
[1731259497868,11.88620253,210.7,210.64,16.6154]
[1731259498473,11.88620253,210.71,210.64,28.50160253]
[1731259499970,170.98620253,210.73,210.66,11.88620253]
[1731259500482,159.1,210.73,210.66,11.88620253]
[1731259500688,11.88620253,210.72,210.66,11.88620253]
[1731259500873,11.88620253,210.72,210.65,11.88620253]
[1731259501268,11.88620253,210.72,210.64,11.8681]
[1731259501473,11.88620253,210.72,210.66,11.88620253]
[1731259501674,11.88620253,210.72,210.65,11.88620253]
[1731259502374,11.88620253,210.71,210.65,11.88620253]
[1731259502767,170.98620253,210.73,210.66,11.88620253]
[1731259503178,170.98620253,210.73,210.66,16.63300253]
[1731259503684,20.0,210.76,210.71,11.88620253]
[1731259503885,159.1,210.8,210.74,11.88620253]
[1731259504076,159.1,210.8,210.77,11.88620253]
[1731259504381,159.1,210.83,210.79,11.88620253]
[1731259504689,159.1,210.83,210.68,37.966884]
[1731259504690,11.88620253,210.91,210.76,14.19]
[1731259504880,18.958082,210.91,210.77,37.966884]
[1731259505067,11.88620253,210.9,210.83,11.88620253]
[1731259506181,11.88620253,210.89,210.79,11.8601]
[1731259506387,11.88620253,210.89,210.82,11.88620253]
[1731259506566,11.88620253,210.88,210.81,11.88620253]
[1731259506765,4.7406,210.94,210.79,11.8601]
[1731259506766,11.88620253,210.84,210.79,11.8601]
[1731259507771,11.88620253,210.85,210.79,11.8601]
[1731259508079,0.22549,210.93,210.7,6.3923]
[1731259508080,11.88620253,210.8,210.74,11.8628]
[1731259508290,11.88620253,210.78,210.74,11.8628]
[1731259508469,11.88620253,210.78,210.71,16.63200253]
[1731259508870,11.88620253,210.77,210.71,4.7458]
[1731259509383,11.88620253,210.73,210.69,4.7462]
[1731259509588,11.88620253,210.71,210.68,11.8658]
[1731259509889,11.88620253,210.7,210.68,11.8658]
[1731259510064,11.88620253,210.69,210.65,11.3419]
[1731259510268,11.88620253,210.69,210.65,4.7471]
[1731259510769,11.88620253,210.68,210.65,4.7471]
[1731259510984,11.88620253,210.66,210.63,11.8687]
[1731259511170,11.88620253,210.65,210.63,11.8687]
[1731259511491,11.88620253,210.64,210.58,11.8717]
[1731259511782,11.88620253,210.64,210.48,6.5948]
[1731259511783,11.88620253,210.59,210.49,4.7508]
[1731259511984,11.88620253,210.62,210.55,11.88620253]
[1731259512185,11.88620253,210.62,210.56,4.7492]
[1731259512594,11.88620253,210.64,210.57,11.88620253]
[1731259512783,19.02819157,210.63,210.56,35.65049157]
[1731259512984,19.02819157,210.63,210.56,16.6223]
[1731259513297,19.02819157,210.61,210.56,16.6223]
[1731259513676,23.776884,210.69,210.56,16.6223]
[1731259513677,19.02819157,210.59,210.56,11.8731]
[1731259513872,19.02819157,210.58,210.56,11.8731]
[1731259514072,19.02819157,210.57,210.56,11.8731]
[1731259514284,19.02819157,210.58,210.56,11.8731]
[1731259514673,19.02819157,210.59,210.56,11.8731]
[1731259514873,19.02819157,210.6,210.56,11.8731]
[1731259515069,43.776884,210.64,210.56,11.8731]
[1731259515070,19.02819157,210.59,210.56,11.8731]
[1731259515881,19.02819157,210.58,210.53,4.7499]
[1731259516076,19.02819157,210.61,210.54,19.02819157]
[1731259516503,19.02819157,210.6,210.53,19.02819157]
[1731259517374,19.02819157,210.59,210.52,19.02819157]
[1731259517574,19.02819157,210.6,210.53,19.02819157]
[1731259517993,4.7474,210.64,210.57,19.02819157]
[1731259517994,19.02819157,210.64,210.57,19.02819157]
[1731259518189,19.02819157,210.67,210.6,19.02819157]
[1731259518400,19.02819157,210.66,210.59,19.02819157]
[1731259518698,19.02819157,210.65,210.58,19.02819157]
[1731259518892,19.02819157,210.65,210.59,19.02819157]
[1731259519200,19.02819157,210.65,210.58,19.02819157]
[1731259519378,19.02819157,210.6,210.53,16.6246]
[1731259519580,19.02819157,210.6,210.53,35.65279157]
[1731259519789,19.02819157,210.65,210.58,19.02819157]
[1731259520873,19.02819157,210.65,210.59,1.58516636]
[1731259521078,19.02819157,210.66,210.6,19.02819157]
[1731259521278,19.02819157,210.67,210.6,19.02819157]
[1731259521473,19.02819157,210.67,210.61,4.7481]
[1731259521693,19.02819157,210.71,210.64,19.02819157]
[1731259522199,19.02819157,210.72,210.65,19.02819157]
[1731259522386,19.02819157,210.71,210.64,19.02819157]
[1731259522778,19.02819157,210.72,210.66,19.02819157]
[1731259523094,178.12819157,210.74,210.67,19.02819157]
[1731259523490,19.02819157,210.73,210.68,0.67898717]
[1731259523678,19.02819157,210.72,210.66,35.64249157]
[1731259523875,19.02819157,210.71,210.67,0.67901774]
[1731259524090,19.02819157,210.7,210.66,16.6143]
[1731259524591,19.02819157,210.71,210.66,16.6143]
[1731259524896,19.02819157,210.71,210.65,19.02819157]
[1731259525396,19.02819157,210.71,210.61,16.7183]
[1731259525397,19.02819157,210.71,210.64,19.02819157]
[1731259525597,19.02819157,210.72,210.65,19.02819157]
[1731259525801,178.12819157,210.74,210.68,19.02819157]
[1731259525981,178.12819157,210.74,210.62,23.776884]
[1731259525982,19.02819157,210.77,210.7,19.02819157]
[1731259526179,19.02819157,210.78,210.71,19.02819157]
[1731259526384,178.12819157,210.79,210.73,19.02819157]
[1731259526604,19.02819157,210.78,210.72,19.02819157]
[1731259526906,19.02819157,210.77,210.71,19.02819157]
[1731259527085,19.02819157,210.74,210.68,19.02819157]
[1731259527404,19.02819157,210.74,210.67,35.64179157]
[1731259527621,19.02819157,210.73,210.67,35.64179157]
[1731259528111,19.02819157,210.72,210.67,16.6136]
[1731259528301,19.02819157,210.71,210.67,16.6136]
[1731259529019,4.7447,210.76,210.64,4.7473]
[1731259529020,19.02819157,210.68,210.64,4.7473]
[1731259529889,19.02819157,210.67,210.62,16.6169]
[1731259530299,19.02819157,210.68,210.62,16.6169]
[1731259532604,19.02819157,210.69,210.62,35.64509157]
[1731259534205,159.1,210.72,210.66,19.02819157]
[1731259534412,19.02819157,210.71,210.64,19.02819157]
[1731259534600,19.02819157,210.7,210.63,19.02819157]
[1731259535418,19.02819157,210.69,210.64,16.6159]
[1731259536690,19.02819157,210.65,210.59,16.6195]
[1731259536892,11.89291795,210.65,210.59,16.6195]
[1731259537297,20.0,210.74,210.59,30.8095]
[1731259537498,20.0,210.74,210.66,11.89291795]
[1731259537706,11.89291795,210.72,210.64,11.89291795]
[1731259538017,11.89291795,210.7,210.63,11.89291795]
[1731259538311,11.89291795,210.7,210.64,4.7474]
[1731259538711,11.89291795,210.7,210.64,16.6159]
[1731259539013,19.0165312,210.7,210.64,16.6159]
[1731259539708,4.7456,210.73,210.64,16.6159]
[1731259539709,19.0165312,210.69,210.64,16.6159]
[1731259539911,19.0165312,210.69,210.58,15.0265]
[1731259539912,19.0165312,210.66,210.6,11.8708]
[1731259540116,19.0165312,210.67,210.6,30.8873312]
[1731259540990,19.0165312,210.68,210.61,19.0165312]
[1731259541188,20.0,210.69,210.63,19.0165312]
[1731259541610,39.0165312,210.69,210.62,19.0165312]
[1731259543014,19.0165312,210.68,210.61,19.0165312]
[1731259543313,39.0165312,210.69,210.63,19.0165312]
[1731259543518,159.1,210.71,210.61,16.6183]
[1731259543708,159.1,210.75,210.7,19.0165312]
[1731259544019,159.1,210.75,210.62,23.776884]
[1731259544020,159.1,210.76,210.72,19.0165312]
[1731259544194,159.1,210.76,210.71,19.0165312]
[1731259544614,159.1,210.76,210.74,19.0165312]
[1731259544797,159.1,210.8,210.75,19.0165312]
[1731259545513,159.1,210.8,210.75,23.7612312]
[1731259545825,159.1,210.8,210.75,4.7447]
[1731259545999,178.1165312,210.8,210.75,4.7447]
[1731259546201,19.0165312,210.78,210.74,11.8627]
[1731259546401,178.1165312,210.8,210.74,16.6078]
[1731259546605,159.1,210.8,210.74,35.6243312]
[1731259548214,159.1,210.8,210.74,16.6078]
[1731259548412,19.0165312,210.78,210.72,19.0165312]
[1731259549814,19.0165312,210.78,210.68,40.3444]
[1731259549815,19.0165312,210.75,210.68,35.6293312]
[1731259550716,19.0165312,210.74,210.68,16.6128]
[1731259550909,19.0165312,210.73,210.68,16.6128]
[1731259551216,19.0165312,210.71,210.68,11.8663]
[1731259551423,19.0165312,210.71,210.64,30.8850312]
[1731259552801,19.0165312,210.71,210.64,35.6324312]
[1731259553627,19.0165312,210.72,210.65,19.0165312]
[1731259553800,19.0165312,210.72,210.66,4.7469]
[1731259555825,182.876884,210.71,210.66,4.7469]
[1731259556322,201.8934152,210.71,210.66,4.7469]
[1731259557917,182.876884,210.71,210.66,4.7469]
[1731259558224,201.8934152,210.71,210.66,4.7469]
[1731259558920,194.76142319,210.71,210.64,23.75303919]
[1731259559114,182.876884,210.71,210.65,11.88453919]
[1731259559416,182.876884,210.71,210.66,11.88453919]
[1731259561020,11.88453919,210.77,210.7,11.88453919]
[1731259561220,12.68791469,210.82,210.71,11.88453919]
[1731259561522,11.88453919,210.8,210.73,11.88453919]
[1731259561700,16.5435,210.83,210.7,6.5699]
[1731259561900,21.2867,210.83,210.7,6.5699]
[1731259562428,11.88453919,210.79,210.72,11.88453919]
[1731259563258,11.88453919,210.79,210.73,16.6089]
[1731259563456,11.88453919,210.79,210.73,28.49343919]
[1731259563663,11.88453919,210.8,210.74,11.88453919]
[1731259563855,11.88453919,210.81,210.74,11.88453919]
[1731259564042,15.4426,210.88,210.8,11.88453919]
[1731259564236,15.4426,210.88,210.73,30.8989]
[1731259564237,11.88453919,210.88,210.81,11.88453919]
[1731259564552,11.88453919,210.87,210.81,11.88453919]
[1731259565140,11.88453919,210.87,210.82,4.7433]
[1731259565536,11.88453919,210.88,210.82,4.7433]
[1731259565825,11.88453919,210.9,210.83,11.88453919]
[1731259566030,11.88453919,210.89,210.82,16.62783919]
[1731259566241,11.88453919,210.88,210.81,11.88453919]
[1731259566736,23.776884,210.87,210.81,11.88453919]
[1731259566924,23.776884,210.87,210.81,18.98563492]
[1731259567432,23.776884,210.87,210.82,4.7433]
[1731259568846,23.776884,210.88,210.82,18.98563492]
[1731259569046,42.76251892,210.88,210.81,18.98563492]
[1731259569351,18.98563492,210.86,210.79,18.98563492]
[1731259569725,23.776884,210.85,210.79,18.98563492]
[1731259570534,23.776884,210.85,210.8,16.6033]
[1731259570747,23.776884,210.87,210.81,18.98563492]
[1731259571449,42.76251892,210.87,210.8,35.58893492]
[1731259571833,18.98563492,210.84,210.77,18.98563492]
[1731259572028,23.776884,210.87,210.76,11.8617]
[1731259572330,159.1,210.96,210.81,0.1]
[1731259572531,21.1105,210.98,210.81,0.1]
[1731259573424,18.98563492,210.96,210.89,18.98563492]
[1731259573615,18.98563492,210.97,210.91,18.98563492]
[1731259574023,18.98563492,211.0,210.93,18.98563492]
[1731259574926,11.1795,211.01,210.91,18.98563492]
[1731259574927,18.98563492,210.98,210.91,18.98563492]
[1731259575312,11.1795,211.01,210.9,18.98563492]
[1731259575313,18.98563492,210.96,210.9,18.98563492]
[1731259575721,18.98563492,210.96,210.9,23.72703492]
[1731259576239,23.776884,210.95,210.9,23.72703492]
[1731259576745,42.76251892,210.97,210.9,23.72703492]
[1731259577037,42.76251892,210.97,210.91,18.98563492]
[1731259580636,42.76251892,210.99,210.93,18.98563492]
[1731259581236,42.76251892,210.99,210.93,23.72643492]
[1731259582139,35.35633492,211.04,210.97,18.98563492]
[1731259582315,35.35633492,211.04,210.93,16.593]
[1731259582316,199.19483492,211.04,210.98,18.98563492]
[1731259582516,199.19483492,211.04,210.93,16.593]
[1731259582517,18.98563492,211.03,210.97,18.98563492]
[1731259583444,42.76251892,211.02,210.95,18.98563492]
[1731259583623,18.98563492,210.96,210.9,4.7414]
[1731259583937,18.98563492,210.96,210.9,23.72703492]
[1731259583938,23.776884,210.95,210.9,23.72703492]
[1731259584740,23.776884,210.93,210.88,39.09303492]
[1731259584921,23.776884,210.93,210.83,15.3656]
[1731259584922,42.76251892,210.91,210.83,15.3656]
[1731259585123,42.76251892,210.89,210.84,4.7427]
[1731259585422,23.776884,210.88,210.84,16.6]
[1731259586043,23.776884,210.89,210.84,16.6]
[1731259586631,159.2,210.97,210.84,16.6]
[1731259586632,18.98563492,210.94,210.87,18.98563492]
[1731259586951,23.776884,210.93,210.88,11.85876285]
[1731259587140,35.63564685,210.95,210.88,11.85876285]
[1731259587685,23.776884,210.95,210.9,11.85876285]
[1731259588156,11.85876285,210.98,210.92,11.85876285]
[1731259588732,11.85876285,210.98,210.91,11.85876285]
[1731259588934,11.85876285,210.97,210.9,11.85876285]
[1731259589154,11.85876285,210.95,210.89,11.85876285]
[1731259589358,11.85876285,210.97,210.9,11.85876285]
[1731259589754,11.85876285,210.97,210.9,16.60026285]
[1731259590247,23.776884,210.96,210.9,16.60026285]
[1731259590959,23.776884,210.96,210.9,28.45416285]
[1731259591242,159.1,210.95,210.91,11.85876285]
[1731259591433,16.59806285,211.01,210.94,11.85876285]
[1731259591833,11.85876285,211.0,210.94,11.85876285]
[1731259592423,11.85876285,211.0,210.94,16.59936285]
[1731259592829,23.776884,210.99,210.94,16.59936285]
[1731259593237,23.776884,210.99,210.94,28.45106285]
[1731259593444,23.776884,211.0,210.94,28.45106285]
[1731259593924,11.85876285,211.03,210.96,11.85876285]
[1731259594239,15.6841,211.1,210.94,16.5923]
[1731259594240,170.95876285,211.07,210.94,16.5923]
[1731259594540,175.69656285,211.07,211.0,11.85876285]
[1731259595178,159.1,211.07,211.01,11.85876285]
[1731259595437,11.85876285,211.05,210.99,11.85876285]
[1731259595642,11.85876285,211.07,211.0,11.85876285]
[1731259595945,11.85876285,211.07,211.01,11.85876285]
[1731259596750,23.776884,211.06,211.01,11.85876285]
[1731259596929,23.776884,211.06,211.01,16.59776285]
[1731259598029,11.85876285,211.09,211.02,11.85876285]
[1731259598341,159.1,211.1,211.05,11.85876285]
[1731259598539,11.85876285,211.14,211.08,11.85876285]
[1731259598775,11.85876285,211.14,211.07,11.85876285]
[1731259599848,23.776884,211.13,211.07,11.85876285]
[1731259600047,35.63564685,211.13,211.06,16.59656285]
[1731259600252,11.85876285,211.11,211.06,4.7378]